[Event "Titled Tuesday Blitz August 22 Late 2023"]
[White "Thomforde-Toates, Noah"]
[Black "Mikaelyan, Arman"]
[WhiteFideId "30951992"]
[BlackFideId "13304852"]
[WhiteElo "2624"]
[BlackElo "2925"]
[Result "1/2-1/2"]
[Round "3"]
[TimeControl "180+1"]
[Date "2023.08.22"]
[WhiteClock "0:00:08"]
[BlackClock "0:00:02"]
[Board "29"]

1. e4 {[%clk 0:02:59]}  h6 {[%clk 0:02:59]} 2. d4 {[%clk 0:02:56]}  e6 {[%clk 0:03:00]} 3. Nf3 {[%clk 0:02:55]}  d5 {[%clk 0:02:59]} 4. Nbd2 {[%clk 0:02:51]}  Be7 {[%clk 0:02:57]} 5. exd5 {[%clk 0:02:44]}  exd5 {[%clk 0:02:58]} 6. Bd3 {[%clk 0:02:44]}  Nf6 {[%clk 0:02:56]} 7. O-O {[%clk 0:02:44]}  O-O {[%clk 0:02:55]} 8. h3 {[%clk 0:02:44]}  c5 {[%clk 0:02:49]} 9. dxc5 {[%clk 0:02:44]}  Bxc5 {[%clk 0:02:50]} 10. Nb3 {[%clk 0:02:44]}  Bb6 {[%clk 0:02:49]} 11. Re1 {[%clk 0:02:44]}  Nc6 {[%clk 0:02:49]} 12. Be3 {[%clk 0:02:44]}  Be6 {[%clk 0:02:40]} 13. Bxb6 {[%clk 0:02:43]}  Qxb6 {[%clk 0:02:40]} 14. c3 {[%clk 0:02:43]}  Rfe8 {[%clk 0:02:36]} 15. Qd2 {[%clk 0:02:41]}  Ne4 {[%clk 0:02:25]} 16. Qe3 {[%clk 0:02:32]}  Qxe3 {[%clk 0:01:51]} 17. Rxe3 {[%clk 0:02:33]}  Bf5 {[%clk 0:01:26]} 18. Nfd4 {[%clk 0:02:28]}  Nxd4 {[%clk 0:01:23]} 19. Nxd4 {[%clk 0:02:28]}  Bg6 {[%clk 0:01:21]} 20. Rae1 {[%clk 0:02:27]}  Kf8 {[%clk 0:01:17]} 21. Bb5 {[%clk 0:02:16]}  Red8 {[%clk 0:01:13]} 22. f3 {[%clk 0:02:12]}  Nd6 {[%clk 0:01:13]} 23. Re7 {[%clk 0:02:10]}  a6 {[%clk 0:01:06]} 24. Bf1 {[%clk 0:01:35]}  Rac8 {[%clk 0:01:06]} 25. R7e5 {[%clk 0:01:33]}  Rc5 {[%clk 0:00:50]} 26. Kf2 {[%clk 0:01:29]}  Re8 {[%clk 0:00:43]} 27. Nb3 {[%clk 0:01:19]}  Rcc8 {[%clk 0:00:27]} 28. Rxd5 {[%clk 0:01:16]}  Rxe1 {[%clk 0:00:28]} 29. Kxe1 {[%clk 0:01:17]}  Nf5 {[%clk 0:00:27]} 30. Kf2 {[%clk 0:01:13]}  Ke7 {[%clk 0:00:27]} 31. Rd2 {[%clk 0:01:11]}  Nd6 {[%clk 0:00:27]} 32. Nd4 {[%clk 0:01:08]}  b5 {[%clk 0:00:26]} 33. g4 {[%clk 0:01:07]}  Bb1 {[%clk 0:00:25]} 34. a3 {[%clk 0:01:06]}  Ba2 {[%clk 0:00:23]} 35. Bd3 {[%clk 0:01:05]}  Bc4 {[%clk 0:00:23]} 36. Nf5+ {[%clk 0:01:04]}  Nxf5 {[%clk 0:00:22]} 37. Bxf5 {[%clk 0:01:04]}  Rc7 {[%clk 0:00:21]} 38. Ke3 {[%clk 0:01:05]}  g6 {[%clk 0:00:21]} 39. Bc2 {[%clk 0:01:03]}  g5 {[%clk 0:00:21]} 40. Rd4 {[%clk 0:01:03]}  Be6 {[%clk 0:00:22]} 41. f4 {[%clk 0:01:03]}  gxf4+ {[%clk 0:00:21]} 42. Kxf4 {[%clk 0:01:04]}  Rc5 {[%clk 0:00:20]} 43. Be4 {[%clk 0:01:03]}  Rc7 {[%clk 0:00:20]} 44. h4 {[%clk 0:01:02]}  f6 {[%clk 0:00:20]} 45. Bf5 {[%clk 0:01:02]}  Bf7 {[%clk 0:00:17]} 46. Re4+ {[%clk 0:01:00]}  Kf8 {[%clk 0:00:17]} 47. Be6 {[%clk 0:00:57]}  Bg6 {[%clk 0:00:17]} 48. Rd4 {[%clk 0:00:57]}  Ke7 {[%clk 0:00:18]} 49. Bb3 {[%clk 0:00:57]}  Rc5 {[%clk 0:00:17]} 50. a4 {[%clk 0:00:54]}  Be8 {[%clk 0:00:16]} 51. a5 {[%clk 0:00:51]}  Bc6 {[%clk 0:00:15]} 52. Bc2 {[%clk 0:00:50]}  Re5 {[%clk 0:00:15]} 53. Be4 {[%clk 0:00:50]}  Bd7 {[%clk 0:00:14]} 54. Rd5 {[%clk 0:00:49]}  Be6 {[%clk 0:00:07]} 55. Rxe5 {[%clk 0:00:47]}  fxe5+ {[%clk 0:00:08]} 56. Kxe5 {[%clk 0:00:48]}  Bxg4 {[%clk 0:00:09]} 57. Bb7 {[%clk 0:00:48]}  Kd7 {[%clk 0:00:06]} 58. Be4 {[%clk 0:00:38]}  Kc7 {[%clk 0:00:04]} 59. Kf6 {[%clk 0:00:37]}  Kd6 {[%clk 0:00:04]} 60. b4 {[%clk 0:00:36]}  Be2 {[%clk 0:00:02]} 61. Bb7 {[%clk 0:00:35]}  h5 {[%clk 0:00:02]} 62. Bxa6 {[%clk 0:00:33]}  Kc7 {[%clk 0:00:02]} 63. Kg5 {[%clk 0:00:32]}  Kb8 {[%clk 0:00:03]} 64. Bxb5 {[%clk 0:00:31]}  Bxb5 {[%clk 0:00:03]} 65. Kxh5 {[%clk 0:00:31]}  Kc7 {[%clk 0:00:04]} 66. Kg6 {[%clk 0:00:32]}  Kd8 {[%clk 0:00:04]} 67. Kg7 {[%clk 0:00:32]}  Be2 {[%clk 0:00:04]} 68. Kg6 {[%clk 0:00:30]}  Ke7 {[%clk 0:00:04]} 69. h5 {[%clk 0:00:31]}  Kf8 {[%clk 0:00:03]} 70. h6 {[%clk 0:00:30]}  Kg8 {[%clk 0:00:04]} 71. Kf6 {[%clk 0:00:29]}  Kh7 {[%clk 0:00:04]} 72. Ke6 {[%clk 0:00:29]}  Kxh6 {[%clk 0:00:05]} 73. Kd6 {[%clk 0:00:28]}  Kg7 {[%clk 0:00:06]} 74. Kc6 {[%clk 0:00:29]}  Kf7 {[%clk 0:00:06]} 75. b5 {[%clk 0:00:30]}  Ke7 {[%clk 0:00:07]} 76. a6 {[%clk 0:00:29]}  Kd8 {[%clk 0:00:07]} 77. c4 {[%clk 0:00:23]}  Kc8 {[%clk 0:00:07]} 78. a7 {[%clk 0:00:20]}  Bf3+ {[%clk 0:00:07]} 79. Kb6 {[%clk 0:00:20]}  Be4 {[%clk 0:00:03]} 80. c5 {[%clk 0:00:20]}  Bb7 {[%clk 0:00:02]} 81. c6 {[%clk 0:00:20]}  Ba8 {[%clk 0:00:03]} 82. Kc5 {[%clk 0:00:20]}  Kc7 {[%clk 0:00:03]} 83. b6+ {[%clk 0:00:21]}  Kc8 {[%clk 0:00:03]} 84. Kd6 {[%clk 0:00:21]}  Bb7 {[%clk 0:00:03]} 85. Kc5 {[%clk 0:00:15]}  Ba8 {[%clk 0:00:02]} 86. Kb5 {[%clk 0:00:15]}  Bb7 {[%clk 0:00:02]} 87. a8=Q+ {[%clk 0:00:07]}  Bxa8 {[%clk 0:00:02]} 88. Ka6 {[%clk 0:00:07]}  Bxc6 {[%clk 0:00:02]} 89. Ka7 {[%clk 0:00:08]}  Bb7 {[%clk 0:00:02]} 1/2-1/2


[Site "https://www.chess.com"]

[Event "Titled Tuesday Blitz August 22 Late 2023"]
[White "Rasulov, Vugar"]
[Black "Chor, Kevin"]
[WhiteFideId "13402390"]
[BlackFideId "2090740"]
[WhiteElo "2900"]
[BlackElo "2577"]
[Result "1-0"]
[Round "3"]
[TimeControl "180+1"]
[Date "2023.08.22"]
[WhiteClock "0:00:33"]
[BlackClock "0:00:05"]
[Board "33"]

1. Nf3 {[%clk 0:03:00]}  Nf6 {[%clk 0:02:57]} 2. c4 {[%clk 0:03:01]}  g6 {[%clk 0:02:57]} 3. g3 {[%clk 0:03:01]}  Bg7 {[%clk 0:02:58]} 4. Bg2 {[%clk 0:03:02]}  O-O {[%clk 0:02:59]} 5. O-O {[%clk 0:03:03]}  c5 {[%clk 0:02:59]} 6. Nc3 {[%clk 0:03:03]}  Nc6 {[%clk 0:02:58]} 7. d3 {[%clk 0:03:04]}  d6 {[%clk 0:02:58]} 8. a3 {[%clk 0:03:03]}  Rb8 {[%clk 0:02:58]} 9. Rb1 {[%clk 0:03:02]}  Ne8 {[%clk 0:02:59]} 10. Bg5 {[%clk 0:02:57]}  h6 {[%clk 0:02:57]} 11. Bd2 {[%clk 0:02:57]}  a5 {[%clk 0:02:55]} 12. Nb5 {[%clk 0:02:50]}  Nc7 {[%clk 0:02:51]} 13. Nxc7 {[%clk 0:02:49]}  Qxc7 {[%clk 0:02:51]} 14. b4 {[%clk 0:02:49]}  axb4 {[%clk 0:02:47]} 15. axb4 {[%clk 0:02:50]}  b6 {[%clk 0:02:17]} 16. Qc1 {[%clk 0:02:36]}  Kh7 {[%clk 0:02:16]} 17. h4 {[%clk 0:02:36]}  Bg4 {[%clk 0:02:07]} 18. Re1 {[%clk 0:02:36]}  Rfc8 {[%clk 0:02:01]} 19. Nh2 {[%clk 0:02:31]}  Bd7 {[%clk 0:01:59]} 20. h5 {[%clk 0:02:27]}  cxb4 {[%clk 0:01:42]} 21. hxg6+ {[%clk 0:02:26]}  fxg6 {[%clk 0:01:43]} 22. Be4 {[%clk 0:02:20]}  Bf5 {[%clk 0:01:23]} 23. Bxf5 {[%clk 0:02:09]}  gxf5 {[%clk 0:01:24]} 24. Nf3 {[%clk 0:02:09]}  b5 {[%clk 0:01:10]} 25. Kg2 {[%clk 0:02:04]}  Ne5 {[%clk 0:00:40]} 26. Rh1 {[%clk 0:01:49]}  Ng4 {[%clk 0:00:37]} 27. Rxb4 {[%clk 0:01:37]}  bxc4 {[%clk 0:00:33]} 28. Rxc4 {[%clk 0:01:38]}  Qb7 {[%clk 0:00:32]} 29. Bf4 {[%clk 0:01:17]}  e5 {[%clk 0:00:25]} 30. Bd2 {[%clk 0:01:17]}  e4 {[%clk 0:00:20]} 31. dxe4 {[%clk 0:00:58]}  fxe4 {[%clk 0:00:21]} 32. Ng5+ {[%clk 0:00:48]}  Kg6 {[%clk 0:00:19]} 33. Nxe4 {[%clk 0:00:47]}  d5 {[%clk 0:00:15]} 34. Bxh6 {[%clk 0:00:33]}  Bxh6 {[%clk 0:00:11]} 35. Rxh6+ {[%clk 0:00:33]}  Nxh6 {[%clk 0:00:09]} 36. Qg5+ {[%clk 0:00:33]}  Kf7 {[%clk 0:00:07]} 37. Nd6+ {[%clk 0:00:33]}  Ke6 {[%clk 0:00:05]} 38. Qxh6+ {[%clk 0:00:34]}  Ke5 {[%clk 0:00:05]} 39. f4# {[%clk 0:00:33]} 1-0


[Site "https://www.chess.com"]

[Event "Titled Tuesday Blitz August 22 Late 2023"]
[White "Grigorjev, Iljya"]
[Black "Siniauski, Artsiom"]
[WhiteFideId "24159565"]
[BlackFideId "13512269"]
[WhiteElo "2895"]
[BlackElo "2570"]
[Result "1-0"]
[Round "3"]
[TimeControl "180+1"]
[Date "2023.08.22"]
[WhiteClock "0:00:12"]
[BlackClock "0:00:06"]
[Board "34"]

1. e4 {[%clk 0:03:00]}  e6 {[%clk 0:02:51]} 2. d4 {[%clk 0:03:00]}  d5 {[%clk 0:02:51]} 3. Nc3 {[%clk 0:03:01]}  Nf6 {[%clk 0:02:51]} 4. Bg5 {[%clk 0:03:01]}  Bb4 {[%clk 0:02:48]} 5. e5 {[%clk 0:03:01]}  h6 {[%clk 0:02:48]} 6. Bd2 {[%clk 0:03:01]}  Bxc3 {[%clk 0:02:49]} 7. bxc3 {[%clk 0:03:02]}  Ne4 {[%clk 0:02:49]} 8. Bc1 {[%clk 0:03:03]}  b6 {[%clk 0:02:44]} 9. Ne2 {[%clk 0:02:45]}  Ba6 {[%clk 0:02:31]} 10. f3 {[%clk 0:02:45]}  Ng5 {[%clk 0:02:30]} 11. h4 {[%clk 0:02:31]}  Nh7 {[%clk 0:02:30]} 12. Nf4 {[%clk 0:02:30]}  Bxf1 {[%clk 0:02:28]} 13. Kxf1 {[%clk 0:02:31]}  c5 {[%clk 0:02:26]} 14. Be3 {[%clk 0:02:27]}  Qc7 {[%clk 0:02:23]} 15. g4 {[%clk 0:02:24]}  Nc6 {[%clk 0:02:10]} 16. Qe2 {[%clk 0:02:20]}  g6 {[%clk 0:02:00]} 17. a4 {[%clk 0:02:12]}  Nf8 {[%clk 0:01:59]} 18. Kg2 {[%clk 0:02:11]}  Nd7 {[%clk 0:01:58]} 19. Nd3 {[%clk 0:02:01]}  cxd4 {[%clk 0:01:37]} 20. cxd4 {[%clk 0:02:01]}  Na5 {[%clk 0:01:34]} 21. f4 {[%clk 0:01:55]}  h5 {[%clk 0:01:23]} 22. f5 {[%clk 0:01:51]}  hxg4 {[%clk 0:01:08]} 23. fxe6 {[%clk 0:01:52]}  fxe6 {[%clk 0:01:08]} 24. Nf4 {[%clk 0:01:49]}  Nf8 {[%clk 0:00:59]} 25. Bd2 {[%clk 0:01:37]}  Nc4 {[%clk 0:00:42]} 26. Bb4 {[%clk 0:01:36]}  Qc6 {[%clk 0:00:37]} 27. a5 {[%clk 0:01:21]}  bxa5 {[%clk 0:00:35]} 28. Bc5 {[%clk 0:01:00]}  Rb8 {[%clk 0:00:34]} 29. Rab1 {[%clk 0:00:58]}  Rxb1 {[%clk 0:00:25]} 30. Rxb1 {[%clk 0:00:59]}  Nd7 {[%clk 0:00:25]} 31. Bd6 {[%clk 0:00:58]}  Kf7 {[%clk 0:00:23]} 32. Rf1 {[%clk 0:00:55]}  Ke8 {[%clk 0:00:21]} 33. Nxe6 {[%clk 0:00:53]}  Rxh4 {[%clk 0:00:16]} 34. Qf2 {[%clk 0:00:45]}  Rh7 {[%clk 0:00:13]} 35. Nf8 {[%clk 0:00:16]}  Rg7 {[%clk 0:00:13]} 36. Ne6 {[%clk 0:00:11]}  Rh7 {[%clk 0:00:13]} 37. Nc5 {[%clk 0:00:11]}  Rg7 {[%clk 0:00:06]} 38. Qf8+ {[%clk 0:00:11]}  Nxf8 {[%clk 0:00:06]} 39. Rxf8# {[%clk 0:00:12]} 1-0


[Site "https://www.chess.com"]

[Event "Titled Tuesday Blitz August 22 Late 2023"]
[White "brm72"]
[Black "Elsa167"]
[WhiteElo "2564"]
[BlackElo "2887"]
[Result "0-1"]
[Round "3"]
[TimeControl "180+1"]
[Date "2023.08.22"]
[WhiteClock "0:00:01"]
[BlackClock "0:00:06"]
[Board "36"]

1. e4 {[%clk 0:03:00]}  e6 {[%clk 0:02:58]} 2. d4 {[%clk 0:03:00]}  d5 {[%clk 0:02:58]} 3. e5 {[%clk 0:03:01]}  c5 {[%clk 0:02:58]} 4. c3 {[%clk 0:02:59]}  Nc6 {[%clk 0:02:59]} 5. Nf3 {[%clk 0:03:00]}  Qb6 {[%clk 0:02:59]} 6. Bd3 {[%clk 0:03:00]}  Bd7 {[%clk 0:02:56]} 7. dxc5 {[%clk 0:02:59]}  Qc7 {[%clk 0:02:53]} 8. O-O {[%clk 0:02:35]}  Bxc5 {[%clk 0:02:52]} 9. Re1 {[%clk 0:02:29]}  Nge7 {[%clk 0:02:50]} 10. b4 {[%clk 0:02:14]}  Bb6 {[%clk 0:02:50]} 11. a4 {[%clk 0:02:12]}  a6 {[%clk 0:02:50]} 12. Na3 {[%clk 0:02:06]}  Ng6 {[%clk 0:02:48]} 13. Qe2 {[%clk 0:01:55]}  O-O {[%clk 0:02:46]} 14. h4 {[%clk 0:01:52]}  f6 {[%clk 0:02:42]} 15. Bxg6 {[%clk 0:01:51]}  hxg6 {[%clk 0:02:43]} 16. Be3 {[%clk 0:01:51]}  fxe5 {[%clk 0:02:36]} 17. Bxb6 {[%clk 0:01:49]}  Qxb6 {[%clk 0:02:37]} 18. a5 {[%clk 0:01:44]}  Qa7 {[%clk 0:02:33]} 19. c4 {[%clk 0:01:40]}  Nd4 {[%clk 0:01:43]} 20. Nxd4 {[%clk 0:01:30]}  Qxd4 {[%clk 0:01:44]} 21. g3 {[%clk 0:01:20]}  e4 {[%clk 0:01:37]} 22. Rad1 {[%clk 0:01:20]}  Qc3 {[%clk 0:01:22]} 23. Qe3 {[%clk 0:01:04]}  Qxb4 {[%clk 0:00:50]} 24. cxd5 {[%clk 0:00:38]}  Rf3 {[%clk 0:00:36]} 25. Nc2 {[%clk 0:00:38]}  Rxe3 {[%clk 0:00:21]} 26. Nxb4 {[%clk 0:00:37]}  Rxe1+ {[%clk 0:00:21]} 27. Rxe1 {[%clk 0:00:38]}  exd5 {[%clk 0:00:19]} 28. Nxd5 {[%clk 0:00:36]}  Re8 {[%clk 0:00:19]} 29. Nc3 {[%clk 0:00:26]}  Bc6 {[%clk 0:00:19]} 30. Kf1 {[%clk 0:00:27]}  Re5 {[%clk 0:00:19]} 31. Ra1 {[%clk 0:00:26]}  Rc5 {[%clk 0:00:19]} 32. Ra3 {[%clk 0:00:25]}  Kf7 {[%clk 0:00:16]} 33. Ke2 {[%clk 0:00:25]}  Ke6 {[%clk 0:00:16]} 34. Ke3 {[%clk 0:00:24]}  Ke5 {[%clk 0:00:17]} 35. Ne2 {[%clk 0:00:22]}  Rc2 {[%clk 0:00:14]} 36. Nf4 {[%clk 0:00:20]}  Kf5 {[%clk 0:00:11]} 37. Ne2 {[%clk 0:00:16]}  Rb2 {[%clk 0:00:09]} 38. Nd4+ {[%clk 0:00:14]}  Ke5 {[%clk 0:00:10]} 39. Ne2 {[%clk 0:00:13]}  Bb5 {[%clk 0:00:08]} 40. Nf4 {[%clk 0:00:13]}  Kf5 {[%clk 0:00:06]} 41. Rc3 {[%clk 0:00:13]}  Ra2 {[%clk 0:00:04]} 42. Rc5+ {[%clk 0:00:13]}  Kf6 {[%clk 0:00:05]} 43. Kxe4 {[%clk 0:00:10]}  Ra4+ {[%clk 0:00:05]} 44. Ke3 {[%clk 0:00:06]}  Rxa5 {[%clk 0:00:05]} 45. Rg5 {[%clk 0:00:06]}  Ra3+ {[%clk 0:00:05]} 46. Kd4 {[%clk 0:00:06]}  Be8 {[%clk 0:00:03]} 47. Nd5+ {[%clk 0:00:06]}  Kf7 {[%clk 0:00:03]} 48. f4 {[%clk 0:00:06]}  Bc6 {[%clk 0:00:03]} 49. Nc7 {[%clk 0:00:05]}  Ra1 {[%clk 0:00:03]} 50. h5 {[%clk 0:00:05]}  Rd1+ {[%clk 0:00:03]} 51. Kc5 {[%clk 0:00:04]}  gxh5 {[%clk 0:00:04]} 52. Rxh5 {[%clk 0:00:04]}  a5 {[%clk 0:00:05]} 53. Rf5+ {[%clk 0:00:04]}  Kg8 {[%clk 0:00:04]} 54. Rg5 {[%clk 0:00:05]}  a4 {[%clk 0:00:04]} 55. Ne6 {[%clk 0:00:05]}  Rd7 {[%clk 0:00:05]} 56. f5 {[%clk 0:00:06]}  a3 {[%clk 0:00:04]} 57. f6 {[%clk 0:00:06]}  a2 {[%clk 0:00:05]} 58. Nxg7 {[%clk 0:00:03]}  Rd5+ {[%clk 0:00:05]} 59. Rxd5 {[%clk 0:00:02]}  Bxd5 {[%clk 0:00:06]} 60. Nf5 {[%clk 0:00:03]}  a1=Q {[%clk 0:00:06]} 61. Ne7+ {[%clk 0:00:03]}  Kf7 {[%clk 0:00:07]} 62. Nxd5 {[%clk 0:00:04]}  Qa5+ {[%clk 0:00:06]} 63. Kd6 {[%clk 0:00:05]}  b5 {[%clk 0:00:06]} 64. Nc7 {[%clk 0:00:01]}  Qb6+ {[%clk 0:00:06]} 0-1


[Site "https://www.chess.com"]

[Event "Titled Tuesday Blitz August 22 Late 2023"]
[White "Kaplan, Avi Harrison"]
[Black "Durarbayli, Vasif"]
[WhiteFideId "30934559"]
[BlackFideId "13402935"]
[WhiteElo "2527"]
[BlackElo "2860"]
[Result "0-1"]
[Round "3"]
[TimeControl "180+1"]
[Date "2023.08.22"]
[WhiteClock "0:00:04"]
[BlackClock "0:00:05"]
[Board "39"]

1. g3 {[%clk 0:03:00]}  c5 {[%clk 0:02:56]} 2. Bg2 {[%clk 0:03:01]}  Nc6 {[%clk 0:02:56]} 3. Nf3 {[%clk 0:02:59]}  g6 {[%clk 0:02:57]} 4. O-O {[%clk 0:02:59]}  Bg7 {[%clk 0:02:57]} 5. e4 {[%clk 0:02:58]}  Nf6 {[%clk 0:02:54]} 6. Re1 {[%clk 0:02:55]}  O-O {[%clk 0:02:54]} 7. c3 {[%clk 0:02:56]}  d5 {[%clk 0:02:54]} 8. e5 {[%clk 0:02:44]}  Ne8 {[%clk 0:02:54]} 9. d4 {[%clk 0:02:44]}  Bg4 {[%clk 0:02:53]} 10. h3 {[%clk 0:02:40]}  Bxf3 {[%clk 0:02:53]} 11. Bxf3 {[%clk 0:02:41]}  Nc7 {[%clk 0:02:51]} 12. dxc5 {[%clk 0:02:23]}  Nxe5 {[%clk 0:02:51]} 13. Bg2 {[%clk 0:02:22]}  Nc6 {[%clk 0:02:48]} 14. Nd2 {[%clk 0:02:08]}  e5 {[%clk 0:02:45]} 15. c4 {[%clk 0:01:56]}  d4 {[%clk 0:02:38]} 16. Rb1 {[%clk 0:01:55]}  a5 {[%clk 0:02:38]} 17. a3 {[%clk 0:01:55]}  Na6 {[%clk 0:02:30]} 18. Ne4 {[%clk 0:01:32]}  Qe7 {[%clk 0:02:30]} 19. b4 {[%clk 0:01:11]}  axb4 {[%clk 0:02:30]} 20. axb4 {[%clk 0:01:11]}  Naxb4 {[%clk 0:02:24]} 21. Bd2 {[%clk 0:01:10]}  Na6 {[%clk 0:02:14]} 22. Nd6 {[%clk 0:01:09]}  Nxc5 {[%clk 0:02:10]} 23. Nxb7 {[%clk 0:01:00]}  Rac8 {[%clk 0:01:46]} 24. Bxc6 {[%clk 0:00:54]}  Rxc6 {[%clk 0:01:45]} 25. Nxc5 {[%clk 0:00:54]}  Qxc5 {[%clk 0:01:42]} 26. Bb4 {[%clk 0:00:54]}  Qxc4 {[%clk 0:01:41]} 27. Bxf8 {[%clk 0:00:54]}  Kxf8 {[%clk 0:01:32]} 28. Rb8+ {[%clk 0:00:50]}  Rc8 {[%clk 0:01:29]} 29. Qb1 {[%clk 0:00:31]}  Bf6 {[%clk 0:01:19]} 30. Rxc8+ {[%clk 0:00:15]}  Qxc8 {[%clk 0:01:20]} 31. Rc1 {[%clk 0:00:14]}  Qxh3 {[%clk 0:01:16]} 32. Qb8+ {[%clk 0:00:11]}  Kg7 {[%clk 0:01:16]} 33. Rc8 {[%clk 0:00:11]}  Qd7 {[%clk 0:01:02]} 34. Rg8+ {[%clk 0:00:11]}  Kh6 {[%clk 0:01:03]} 35. Qb1 {[%clk 0:00:02]}  d3 {[%clk 0:00:59]} 36. Qc1+ {[%clk 0:00:02]}  d2 {[%clk 0:00:58]} 37. Qd1 {[%clk 0:00:03]}  Bd8 {[%clk 0:00:46]} 38. Kg2 {[%clk 0:00:02]}  Kg5 {[%clk 0:00:38]} 39. f4+ {[%clk 0:00:01]}  exf4 {[%clk 0:00:20]} 40. gxf4+ {[%clk 0:00:02]}  Kf5 {[%clk 0:00:21]} 41. Qc2+ {[%clk 0:00:02]}  Kxf4 {[%clk 0:00:19]} 42. Qc4+ {[%clk 0:00:03]}  Kg5 {[%clk 0:00:18]} 43. Qc5+ {[%clk 0:00:02]}  f5 {[%clk 0:00:12]} 44. Qe3+ {[%clk 0:00:03]}  Kh5 {[%clk 0:00:10]} 45. Qh3+ {[%clk 0:00:02]}  Bh4 {[%clk 0:00:10]} 46. Qf3+ {[%clk 0:00:03]}  Kg5 {[%clk 0:00:10]} 47. Qe3+ {[%clk 0:00:03]}  Kh5 {[%clk 0:00:10]} 48. Qf3+ {[%clk 0:00:04]}  Kh6 {[%clk 0:00:09]} 49. Qe3+ {[%clk 0:00:04]}  g5 {[%clk 0:00:09]} 50. Re8 {[%clk 0:00:02]}  Qxe8 {[%clk 0:00:04]} 51. Qxe8 {[%clk 0:00:02]}  d1=Q {[%clk 0:00:05]} 52. Qe6+ {[%clk 0:00:03]}  Kh5 {[%clk 0:00:05]} 53. Qe8+ {[%clk 0:00:03]}  Kg4 {[%clk 0:00:05]} 54. Qa4+ {[%clk 0:00:03]}  Qxa4 {[%clk 0:00:05]} 55. Kf1 {[%clk 0:00:02]}  Qc4+ {[%clk 0:00:04]} 56. Kg1 {[%clk 0:00:02]}  Qc1+ {[%clk 0:00:04]} 57. Kh2 {[%clk 0:00:03]}  Qd2+ {[%clk 0:00:04]} 58. Kh1 {[%clk 0:00:04]}  Kg3 {[%clk 0:00:04]} 59. Kg1 {[%clk 0:00:04]}  Qd1# {[%clk 0:00:05]} 0-1


[Site "https://www.chess.com"]

[Event "Titled Tuesday Blitz August 22 Late 2023"]
[White "Asadli, Vugar"]
[Black "Geivondian, Arman"]
[WhiteFideId "13405764"]
[BlackFideId "24102032"]
[WhiteElo "2850"]
[BlackElo "2519"]
[Result "1-0"]
[Round "3"]
[TimeControl "180+1"]
[Date "2023.08.22"]
[WhiteClock "0:00:53"]
[BlackClock "0:00:31"]
[Board "40"]

1. e4 {[%clk 0:03:00]}  c6 {[%clk 0:03:00]} 2. Nf3 {[%clk 0:03:01]}  d5 {[%clk 0:03:01]} 3. e5 {[%clk 0:03:01]}  Bg4 {[%clk 0:03:01]} 4. Be2 {[%clk 0:03:00]}  e6 {[%clk 0:02:59]} 5. O-O {[%clk 0:03:01]}  Nd7 {[%clk 0:02:59]} 6. d4 {[%clk 0:02:56]}  Bxf3 {[%clk 0:02:58]} 7. Bxf3 {[%clk 0:02:56]}  Ne7 {[%clk 0:02:59]} 8. c3 {[%clk 0:02:53]}  Qc7 {[%clk 0:02:58]} 9. Be2 {[%clk 0:02:42]}  g6 {[%clk 0:02:58]} 10. Nd2 {[%clk 0:02:40]}  h5 {[%clk 0:02:57]} 11. Nf3 {[%clk 0:02:39]}  Nf5 {[%clk 0:02:57]} 12. a4 {[%clk 0:02:36]}  Bg7 {[%clk 0:02:54]} 13. a5 {[%clk 0:02:34]}  O-O {[%clk 0:02:54]} 14. Bd3 {[%clk 0:02:34]}  Ne7 {[%clk 0:02:49]} 15. b4 {[%clk 0:02:29]}  b6 {[%clk 0:02:49]} 16. Bg5 {[%clk 0:02:25]}  Nf5 {[%clk 0:02:43]} 17. Re1 {[%clk 0:02:21]}  Rfe8 {[%clk 0:02:42]} 18. h3 {[%clk 0:02:13]}  f6 {[%clk 0:02:32]} 19. exf6 {[%clk 0:02:12]}  Nxf6 {[%clk 0:02:31]} 20. Ne5 {[%clk 0:02:10]}  Kh7 {[%clk 0:02:13]} 21. g4 {[%clk 0:02:07]}  hxg4 {[%clk 0:02:13]} 22. hxg4 {[%clk 0:02:08]}  Ne7 {[%clk 0:02:11]} 23. Qf3 {[%clk 0:02:06]}  Ne4 {[%clk 0:02:07]} 24. Bxe4 {[%clk 0:01:46]}  dxe4 {[%clk 0:02:06]} 25. Qf7 {[%clk 0:01:45]}  Nd5 {[%clk 0:01:55]} 26. Qxg6+ {[%clk 0:01:44]}  Kg8 {[%clk 0:01:51]} 27. Kg2 {[%clk 0:01:36]}  Rf8 {[%clk 0:01:26]} 28. Rh1 {[%clk 0:01:34]}  Nf4+ {[%clk 0:01:26]} 29. Bxf4 {[%clk 0:01:34]}  Rxf4 {[%clk 0:01:27]} 30. Qh7+ {[%clk 0:01:30]}  Kf8 {[%clk 0:01:27]} 31. Ng6+ {[%clk 0:01:07]}  Kf7 {[%clk 0:01:27]} 32. Qh5 {[%clk 0:01:06]}  Kg8 {[%clk 0:01:23]} 33. Rae1 {[%clk 0:01:02]}  bxa5 {[%clk 0:00:49]} 34. Qh7+ {[%clk 0:00:56]}  Kf7 {[%clk 0:00:47]} 35. Nxf4 {[%clk 0:00:56]}  Qxf4 {[%clk 0:00:47]} 36. Rxe4 {[%clk 0:00:57]}  Qd2 {[%clk 0:00:43]} 37. Qh5+ {[%clk 0:00:56]}  Kg8 {[%clk 0:00:40]} 38. Rxe6 {[%clk 0:00:55]}  Rf8 {[%clk 0:00:35]} 39. Qh7+ {[%clk 0:00:52]}  Kf7 {[%clk 0:00:36]} 40. Rhe1 {[%clk 0:00:52]}  Qg5 {[%clk 0:00:30]} 41. Re7+ {[%clk 0:00:52]}  Qxe7 {[%clk 0:00:29]} 42. Rxe7+ {[%clk 0:00:53]}  Kxe7 {[%clk 0:00:30]} 43. Qxg7+ {[%clk 0:00:53]}  Rf7 {[%clk 0:00:31]} 44. Qxf7+ {[%clk 0:00:52]}  Kxf7 {[%clk 0:00:31]} 45. bxa5 {[%clk 0:00:53]} 1-0


[Site "https://www.chess.com"]

[Event "Titled Tuesday Blitz August 22 Late 2023"]
[White "ProphetReborn"]
[Black "Titichoca Daza, Daniel"]
[BlackFideId "3309550"]
[WhiteElo "2804"]
[BlackElo "2436"]
[Result "1-0"]
[Round "3"]
[TimeControl "180+1"]
[Date "2023.08.22"]
[WhiteClock "0:01:23"]
[BlackClock "0:00:00"]
[Board "46"]

1. d4 {[%clk 0:02:57]}  Nf6 {[%clk 0:02:58]} 2. c4 {[%clk 0:02:57]}  e6 {[%clk 0:02:58]} 3. Nf3 {[%clk 0:02:56]}  d5 {[%clk 0:02:59]} 4. Nc3 {[%clk 0:02:56]}  dxc4 {[%clk 0:02:58]} 5. e4 {[%clk 0:02:56]}  b5 {[%clk 0:02:57]} 6. e5 {[%clk 0:02:56]}  Nd5 {[%clk 0:02:57]} 7. Nxb5 {[%clk 0:02:57]}  Nb6 {[%clk 0:02:56]} 8. Be2 {[%clk 0:02:57]}  Bb7 {[%clk 0:02:55]} 9. O-O {[%clk 0:02:57]}  Nc6 {[%clk 0:02:55]} 10. Qd2 {[%clk 0:02:57]}  h6 {[%clk 0:02:11]} 11. Nc3 {[%clk 0:02:30]}  g5 {[%clk 0:01:46]} 12. h3 {[%clk 0:02:29]}  Be7 {[%clk 0:01:36]} 13. Rd1 {[%clk 0:02:27]}  h5 {[%clk 0:01:34]} 14. Nxg5 {[%clk 0:02:23]}  h4 {[%clk 0:01:25]} 15. Nge4 {[%clk 0:02:17]}  Rg8 {[%clk 0:01:22]} 16. Bf3 {[%clk 0:02:17]}  Rb8 {[%clk 0:00:59]} 17. Nc5 {[%clk 0:02:10]}  Bxc5 {[%clk 0:00:56]} 18. dxc5 {[%clk 0:02:10]}  Nd7 {[%clk 0:00:57]} 19. Qf4 {[%clk 0:02:02]}  Qe7 {[%clk 0:00:49]} 20. Ne4 {[%clk 0:01:46]}  Ncxe5 {[%clk 0:00:47]} 21. Rxd7 {[%clk 0:01:35]}  Nxd7 {[%clk 0:00:35]} 22. Qxc7 {[%clk 0:01:30]}  Bxe4 {[%clk 0:00:31]} 23. Bxe4 {[%clk 0:01:31]}  Qxc5 {[%clk 0:00:31]} 24. Bc6 {[%clk 0:01:24]}  Ke7 {[%clk 0:00:01]} 25. Qxd7+ {[%clk 0:01:23]}  Kf6 {[%clk 0:00:01]} 26. Be3 {[%clk 0:01:24]}  Qe5 {[%clk 0:00:00]} 27. Bd4 {[%clk 0:01:23]} 1-0


[Site "https://www.chess.com"]